fUST/lending_fUST_20240705
["ID","MTS","AMOUNT","RATE_DAILY","PERIOD"]
[331186062,1720126249498,-500.0,0.00014246,2]
[331186063,1720126249508,-500.0,0.00014246,2]
[331186064,1720126249518,-500.0,0.00014246,2]
[331186065,1720126249527,-500.0,0.00014246,2]
[331186066,1720126249537,-500.0,0.00014246,2]
[331186067,1720126249546,-504.51842998,0.00014246,2]
[331186068,1720126249555,-500.0,0.00014246,2]
[331186069,1720126249564,-500.0,0.00014246,2]
[331186070,1720126249575,-500.0,0.00014246,2]
[331186071,1720126249584,-500.0,0.00014246,2]
[331186072,1720126249595,-500.0,0.00014246,2]
[331186073,1720126249604,-500.0,0.00014246,2]
[331186074,1720126249613,-500.0,0.00014246,2]
[331186075,1720126249622,-500.0,0.00014246,2]
[331186076,1720126249631,-500.0,0.00014246,2]
[331186077,1720126249640,-500.0,0.00014246,2]
[331186078,1720126249649,-500.0,0.00014246,2]
[331186079,1720126249658,-500.0,0.00014246,2]
[331186080,1720126249667,-500.0,0.00014246,2]
[331186081,1720126249677,-500.0,0.00014246,2]
[331186082,1720126249686,-500.0,0.00014246,2]
[331186083,1720126249695,-1672.52131258,0.00014246,2]
[331186084,1720126250556,-11745.10868742,0.00014246,2]
[331186085,1720126250567,-500.0,0.00014246,2]
[331186086,1720126250576,-500.0,0.00014246,2]
[331186087,1720126250586,-500.0,0.00014246,2]
[331186088,1720126250596,-500.0,0.00014246,2]
[331186089,1720126250607,-808.22,0.00014246,2]
[331186090,1720126250616,-500.0,0.00014246,2]
[331186091,1720126250626,-500.0,0.00014246,2]
[331186092,1720126250636,-500.0,0.00014246,2]
[331186093,1720126250646,-1648.71,0.00014246,2]
[331186094,1720126250656,-509.19,0.00014246,2]
[331186095,1720126250666,-500.0,0.00014246,2]
[331186096,1720126250676,-1517.76,0.00014246,2]
[331186097,1720126250686,-5349.5,0.00014246,2]
[331186098,1720126250696,-1059.15,0.00014246,2]
[331186099,1720126250706,-153.0,0.00014263,2]
[331186100,1720126250715,-153.0,0.00014263,2]
[331186101,1720126250725,-153.0,0.00014263,2]
[331186102,1720126250735,-153.0,0.00014263,2]
[331186103,1720126250744,-153.0,0.00014263,2]
[331186104,1720126250754,-153.0,0.00014263,2]
[331186105,1720126250764,-2779.76303432,0.0001451,2]
[331186106,1720126250775,-500.0,0.00014519,2]
[331186107,1720126250786,-2965.47,0.00014519,2]
[331186108,1720126250795,-1744.48,0.00014519,2]
[331186109,1720126250806,-1744.48,0.00014519,2]
[331186110,1720126250815,-526.04,0.00014519,2]
[331186111,1720126250825,-500.0,0.00014519,2]
[331186112,1720126250835,-500.0,0.0001452,2]
[331186113,1720126250845,-500.0,0.0001452,2]
[331186114,1720126250855,-500.0,0.0001452,2]
[331186115,1720126250864,-500.0,0.0001452,2]
[331186116,1720126250874,-500.0,0.0001452,2]
[331186117,1720126250883,-500.0,0.0001452,2]
[331186118,1720126250893,-500.0,0.0001452,2]
[331186119,1720126250903,-500.0,0.0001452,2]
[331186120,1720126250914,-500.0,0.0001452,2]
[331186121,1720126250924,-500.0,0.0001452,2]
[331186122,1720126250934,-500.0,0.0001452,2]
[331186123,1720126250944,-500.0,0.0001452,2]
[331186124,1720126250954,-500.0,0.0001452,2]
[331186125,1720126250964,-500.0,0.0001452,2]
[331186126,1720126250974,-500.0,0.0001452,2]
[331186127,1720126250984,-500.0,0.0001452,2]
[331186128,1720126250994,-500.0,0.0001452,2]
[331186129,1720126251004,-506.00537263,0.0001452,2]
[331186130,1720126251014,-500.0,0.0001452,2]
[331186131,1720126251024,-500.0,0.0001452,2]
[331186132,1720126251034,-500.0,0.0001452,2]
[331186133,1720126251044,-500.0,0.0001452,2]
[331186134,1720126251054,-250.77,0.0001452,2]
[331186135,1720126251064,-500.0,0.0001452,2]
[331186136,1720126251074,-884.26,0.0001452,2]
[331186137,1720126251083,-500.0,0.0001452,2]
[331186138,1720126251093,-1040.85,0.0001452,2]
[331186139,1720126251104,-500.0,0.0001452,2]
[331186140,1720126251118,-733.75,0.0001452,2]
[331186141,1720126251127,-857.1,0.0001452,2]
[331186142,1720126251137,-500.0,0.0001452,2]
[331186143,1720126251147,-511.32,0.0001452,2]
[331186144,1720126251157,-500.0,0.0001452,2]
[331186145,1720126251167,-500.0,0.0001452,2]
[331186146,1720126251178,-566.16,0.0001452,2]
[331186147,1720126251190,-500.0,0.0001452,2]
[331186148,1720126251199,-500.0,0.0001452,2]
[331186149,1720126251209,-500.0,0.0001452,2]
[331186150,1720126251218,-4759.93,0.0001452,2]
[331186151,1720126251227,-556.43154476,0.0001452,2]
[331186152,1720126251237,-2452.04,0.0001452,2]
[331186153,1720126251247,-500.0,0.0001452,2]
[331186154,1720126251258,-500.0,0.0001452,2]
[331186155,1720126251267,-294.51046021,0.0001452,2]
[331186156,1720126251416,-500.0,0.0001452,2]
[331186157,1720126251428,-500.0,0.0001452,2]
[331186158,1720126251438,-2251.76,0.0001452,2]
[331186159,1720126251447,-531.59,0.0001452,2]
[331186160,1720126251457,-577.1689536,0.0001452,2]
[331186161,1720126251468,-500.0,0.0001452,2]
[331186162,1720126251478,-500.0,0.0001452,2]
[331186163,1720126251488,-541.22,0.0001452,2]
[331186164,1720126251498,-4496.81,0.0001452,2]
[331186165,1720126251507,-500.0,0.0001452,2]
[331186166,1720126251518,-1058.78,0.0001452,2]
[331186167,1720126251526,-500.0,0.0001452,2]
[331186168,1720126251537,-500.0,0.0001452,2]
[331186169,1720126251546,-500.0,0.0001452,2]
[331186170,1720126251556,-500.0,0.0001452,2]
[331186171,1720126251566,-500.0,0.0001452,2]
[331186172,1720126251576,-581.59,0.0001452,2]
[331186173,1720126251586,-3381.78,0.0001452,2]
[331186174,1720126251595,-500.0,0.0001452,2]
[331186175,1720126251605,-500.0,0.0001452,2]
[331186176,1720126251614,-1591.81,0.0001452,2]
[331186177,1720126251623,-500.0,0.0001452,2]
[331186178,1720126251633,-568.97,0.0001452,2]
[331186179,1720126251643,-500.0,0.0001452,2]
[331186180,1720126251652,-558.58,0.0001452,2]
[331186181,1720126251662,-500.0,0.0001452,2]
[331186182,1720126251671,-2115.03,0.0001452,2]
[331186183,1720126251680,-1172.36,0.0001452,2]
[331186184,1720126251689,-500.0,0.0001452,2]
[331186185,1720126251699,-500.0,0.0001452,2]
[331186186,1720126251709,-500.0,0.0001452,2]
[331186187,1720126251718,-204.88,0.0001452,2]
[331186188,1720126251727,-5262.13,0.0001452,2]
[331186189,1720126251737,-626.17,0.0001452,2]
[331186190,1720126251746,-500.0,0.0001452,2]
[331186191,1720126251755,-847.03,0.0001452,2]
[331186192,1720126251765,-576.19,0.0001452,2]
[331186193,1720126251775,-500.0,0.0001452,2]
[331186194,1720126251785,-500.0,0.0001452,2]
[331186195,1720126251794,-500.0,0.0001452,2]
[331186196,1720126251805,-715.45,0.0001452,2]
[331186197,1720126251816,-500.0,0.0001452,2]
[331186198,1720126251828,-3168.95,0.0001452,2]
[331186199,1720126251837,-504.90281223,0.0001452,2]
[331186200,1720126251848,-1925.48,0.0001452,2]
[331186201,1720126251858,-500.0,0.0001452,2]
[331186202,1720126251867,-500.0,0.0001452,2]
[331186203,1720126251876,-500.0,0.0001452,2]
[331186204,1720126251885,-500.0,0.0001452,2]
[331186205,1720126251895,-500.0,0.0001452,2]
[331186206,1720126251904,-500.0,0.0001452,2]
[331186207,1720126251914,-500.0,0.0001452,2]
[331186208,1720126251923,-500.0,0.0001452,2]
[331186209,1720126251932,-500.0,0.0001452,2]
[331186210,1720126251942,-500.0,0.0001452,2]
[331186211,1720126251952,-500.0,0.0001452,2]
[331186212,1720126251961,-475.58409414,0.0001452,2]
[331186213,1720126251971,-500.0,0.0001452,2]
[331186214,1720126251980,-500.0,0.0001452,2]
[331186215,1720126251991,-500.0,0.0001452,2]
[331186216,1720126252000,-500.0,0.0001452,2]
[331186217,1720126252010,-356.57521635,0.0001452,2]
[331186218,1720126252019,-13417.63,0.0001452,2]
[331186219,1720126252029,-500.0,0.0001452,2]
[331186220,1720126252039,-500.0,0.0001452,2]
[331186221,1720126252048,-506.07017931,0.0001452,2]
[331186222,1720126252059,-500.0,0.0001452,2]
[331186223,1720126252069,-808.22,0.0001452,2]
[331186224,1720126252079,-1648.71,0.0001452,2]
[331186225,1720126252088,-500.0,0.0001452,2]
[331186226,1720126252099,-1517.76,0.0001452,2]
[331186227,1720126252114,-5349.5,0.0001452,2]
[331186228,1720126252124,-1059.15,0.0001452,2]
[331186229,1720126252134,-306.0,0.00014716,2]
[331186230,1720126252144,-2779.76303432,0.00014784,2]
[331186231,1720126252154,-500.0,0.00014793,2]
[331186232,1720126252164,-2965.47,0.00014793,2]
[331186233,1720126252174,-1744.48,0.00014793,2]
[331186234,1720126252184,-526.04,0.00014793,2]
[331186235,1720126252194,-500.0,0.00014793,2]
[331186236,1720126252203,-151.0,0.00014793,2]
[331186237,1720126252212,-1284.76673272,0.00014794,2]
[331186238,1720126252222,-3005.27552071,0.00014794,4]
[331186239,1720126252232,-1158.13050949,0.00014794,2]
[331186240,1720126252242,-500.0,0.00014794,2]
[331186241,1720126252252,-500.0,0.00014794,2]
[331186242,1720126252262,-500.0,0.00014794,2]
[331186243,1720126252272,-500.0,0.00014794,2]
[331186244,1720126252282,-478.2,0.00014794,2]
[331186245,1720126252291,-505.83099812,0.00014794,2]
[331186246,1720126252301,-500.0,0.00014794,2]
[331186247,1720126252311,-500.0,0.00014794,2]
[331186248,1720126252322,-500.0,0.00014794,2]
[331186249,1720126252331,-884.26,0.00014794,2]
[331186250,1720126252340,-1040.85,0.00014794,2]
[331186251,1720126252349,-500.0,0.00014794,2]
[331186252,1720126252376,-733.75,0.00014794,2]
[331186253,1720126252386,-857.1,0.00014794,2]
[331186254,1720126252396,-500.0,0.00014794,2]
[331186255,1720126252405,-500.0,0.00014794,2]
[331186256,1720126252415,-500.0,0.00014794,2]
[331186257,1720126252425,-566.16,0.00014794,2]
[331186258,1720126252434,-500.0,0.00014794,2]
[331186259,1720126252445,-500.0,0.00014794,2]
[331186260,1720126252456,-4759.93,0.00014794,2]
[331186261,1720126252466,-2452.04,0.00014794,2]
[331186262,1720126252475,-442.90997034,0.00014794,2]
[331186263,1720126252492,-57.09002966,0.00014794,2]
[331186264,1720126252502,-505.12,0.00014794,2]
[331186265,1720126252512,-500.0,0.00014794,2]
[331186266,1720126252522,-16.02668655,0.00014794,2]
[331186267,1720126252534,-2235.73331345,0.00014794,2]
[331186268,1720126252543,-531.59,0.00014794,2]
[331186269,1720126252553,-151.41147,0.00014794,2]
[331186270,1720126252562,-500.0,0.00014794,2]
[331186271,1720126252573,-151.0,0.00014794,2]
[331186272,1720126252582,-500.0,0.00014794,2]
[331186273,1720126252591,-151.0,0.00014794,2]
[331186274,1720126252601,-4496.81,0.00014794,2]
[331186275,1720126252611,-500.0,0.00014794,2]
[331186276,1720126252620,-1058.78,0.00014794,2]
[331186277,1720126252630,-497.732938,0.00014794,2]
[331186278,1720126252639,-497.732938,0.00014794,2]
[331186279,1720126252649,-500.0,0.00014794,2]
[331186280,1720126252659,-151.0,0.00014794,2]
[331186281,1720126252668,-500.0,0.00014794,2]
[331186282,1720126252678,-500.0,0.00014794,2]
[331186283,1720126252687,-151.0,0.00014794,2]
[331186284,1720126252697,-500.0,0.00014794,2]
[331186285,1720126252706,-581.59,0.00014794,2]
[331186286,1720126252715,-151.0,0.00014794,2]
[331186287,1720126252725,-3381.78,0.00014794,2]
[331186288,1720126252734,-500.0,0.00014794,2]
[331186289,1720126252743,-1591.81,0.00014794,2]
[331186290,1720126252752,-151.0,0.00014794,2]
[331186291,1720126252762,-553.70911592,0.00014794,2]
[331186292,1720126252771,-568.97,0.00014794,2]
[331186293,1720126252780,-500.0,0.00014794,2]
[331186294,1720126252790,-2115.03,0.00014794,2]
[331186295,1720126252799,-200.760191,0.00014794,2]
[331186296,1720126252809,-200.760191,0.00014794,2]
[331186297,1720126252819,-1172.36,0.00014794,2]
[331186298,1720126252828,-500.0,0.00014794,2]
[331186299,1720126252838,-500.0,0.00014794,2]
[331186300,1720126252847,-626.17,0.00014794,2]
[331186301,1720126252857,-5262.13,0.00014794,2]
[331186302,1720126252867,-500.0,0.00014794,2]
[331186303,1720126252876,-847.03,0.00014794,2]
[331186304,1720126252886,-576.19,0.00014794,2]
[331186305,1720126252895,-500.0,0.00014794,2]
[331186306,1720126252904,-500.0,0.00014794,2]
[331186307,1720126252914,-442.03707694,0.00014794,2]
[331186308,1720126253175,-500.0,0.00013698,2]
[331186309,1720126253188,-500.0,0.00013698,2]
[331186310,1720126253198,-500.0,0.00013972,2]
[331186311,1720126253207,-500.0,0.00013972,2]
[331186312,1720126253217,-500.0,0.00014246,2]
[331186313,1720126253226,-500.0,0.00014246,2]
[331186314,1720126253235,-500.0,0.0001452,2]
[331186315,1720126253245,-273.41292306,0.00014794,2]
[331186316,1720126253255,-3168.95,0.00014794,2]
[331186317,1720126253264,-1925.48,0.00014794,2]
[331186318,1720126253273,-508.55,0.00014794,2]
[331186319,1720126253283,-500.0,0.00014794,2]
[331186320,1720126253292,-500.0,0.00014794,2]
[331186321,1720126253301,-500.0,0.00014794,2]
[331186322,1720126253311,-151.0,0.00014794,2]
[331186323,1720126253322,-151.0,0.00014794,2]
[331186324,1720126253331,-151.0,0.00014794,2]
[331186325,1720126253339,-500.0,0.00014794,2]
[331186326,1720126253349,-151.0,0.00014794,2]
[331186327,1720126253358,-500.0,0.00014794,2]
[331186328,1720126253368,-188.923768,0.00014794,2]
[331186329,1720126253377,-466.96572818,0.00014794,2]
[331186330,1720126253387,-411.90216455,0.00014794,2]
[331186331,1720126253396,-500.0,0.00014794,2]
[331186332,1720126253405,-500.0,0.00014794,2]
[331186333,1720126253414,-500.0,0.00014794,2]
[331186334,1720126253424,-151.0,0.00014794,2]
[331186335,1720126253433,-500.0,0.00014794,2]
[331186336,1720126253443,-327.445789,0.00014794,2]
[331186337,1720126253454,-327.445789,0.00014794,2]
[331186338,1720126253464,-151.0,0.00014794,2]
[331186339,1720126253473,-13417.63,0.00014794,2]
[331186340,1720126253483,-500.0,0.00014794,2]
[331186341,1720126253492,-142.64728907,0.00014794,2]
[331186342,1720126253509,-8.35271093,0.00014794,2]
[331186343,1720126253616,-151.0,0.00014794,2]
[331186344,1720126253628,-808.22,0.00014794,2]
[331186345,1720126253637,-1648.71,0.00014794,2]
[331186346,1720126253647,-1517.76,0.00014794,2]
[331186347,1720126253656,-1059.15,0.00014794,2]
[331186348,1720126253665,-5349.5,0.00014794,2]
[331186349,1720126253675,-1389.88151716,0.00014989,2]
[331186350,1720126253684,-1744.48,0.00014997,2]
[331186351,1720126253693,-6076.9012323,0.00014998,2]
[331186352,1720126253703,-11029.28750384,0.00014998,2]
[331186353,1720126253712,-217.444961,0.00014998,2]
[331186354,1720126253722,-217.444961,0.00014998,2]
[331186355,1720126253731,-555.987472,0.00014998,2]
[331186356,1720126253740,-555.987472,0.00014998,2]
[331186357,1720126253749,-3078.51196359,0.00014999,2]
[331186358,1720126253759,-1500.0,0.00014999,2]
[331186359,1720126253768,-1634.59229075,0.00014999,2]
[331186360,1720126253778,-4710.72024946,0.00014999,2]
[331186361,1720126253788,-1463.29635585,0.00014999,2]
[331186362,1720126253797,-3137.77932824,0.00014999,2]
[331186363,1720126253806,-2126.43441341,0.00014999,2]
[331186364,1720126253816,-1916.29526789,0.00014999,2]
[331186365,1720126253826,-789.77698638,0.00014999,2]
[331186366,1720126253835,-1434.44237247,0.00014999,2]
[331186367,1720126253845,-2132.45671248,0.00014999,2]
[331186368,1720126253854,-2118.3618334,0.00014999,2]
[331186369,1720126253863,-153.434505,0.00014999,2]
[331186370,1720126253873,-151.0,0.00014999,2]
[331186371,1720126253882,-151.0,0.00014999,2]
[331186372,1720126253892,-213.421974,0.00014999,2]
[331186373,1720126253901,-151.0,0.00014999,2]
[331186374,1720126253911,-808.0087546,0.00015,2]
[331186375,1720126253921,-1039.06688618,0.00015,2]
[331186376,1720126253930,-398.38750359,0.00015,2]
[331186377,1720126253939,-937.8,0.00015,2]
[331186378,1720126253949,-948.84245203,0.00015,2]
[331186379,1720126253960,-2420.55776569,0.00015,2]
[331186380,1720126253970,-2520.34502624,0.00015,2]
[331186389,1720126495003,1284.76673272,9.999e-05,2]
[331186415,1720126952022,195.38427408,0.0001,2]
[331186420,1720126976240,154.83742071,9.999e-05,2]
[331186422,1720127042060,158.2290339,0.0001,2]
[331186423,1720127078174,154.83742071,9.999e-05,2]
[331186424,1720127145040,309.73672378,0.0001,2]
[331186425,1720127195182,210.00192092,9.999e-05,2]
[331186460,1720127432717,-154.86836189,0.0001212,2]
[331186463,1720127432727,-300.0,0.00012476,2]
[331186465,1720127432736,-246.02822099,0.00012476,2]
[331186603,1720127438759,-53.97177901,0.00012476,2]
[331186605,1720127438770,-2647.63143545,0.00012477,2]
[331186607,1720127438978,-22252.36856455,0.00012477,2]
[331186608,1720127438988,-11266.15905371,0.00012772,2]
[331186609,1720127439000,-4397.45664979,0.00012772,2]
[331186610,1720127439010,-215.90205021,0.00013598,2]
[331186611,1720127439082,-4052.80836052,0.00013598,2]
[331186612,1720127439092,-3312.97734208,0.00013688,2]
[331186613,1720127439102,-500.0,0.00013698,2]
[331186614,1720127439112,-500.0,0.00013698,2]
[331186615,1720127439122,-500.0,0.00013698,2]
[331186616,1720127439132,-500.0,0.00013698,2]
[331186617,1720127439141,-500.0,0.00013698,2]
[331186618,1720127439151,-500.0,0.00013698,2]
[331186619,1720127439161,-500.0,0.00013698,2]
[331186620,1720127439176,-500.0,0.00013698,2]
[331186621,1720127439186,-500.0,0.00013698,2]
[331186622,1720127439196,-500.0,0.00013698,2]
[331186623,1720127439206,-500.0,0.00013698,2]
[331186624,1720127439216,-501.7906129,0.00013698,2]
[331186625,1720127439226,-500.0,0.00013698,2]
[331186626,1720127439236,-500.0,0.00013698,2]
[331186627,1720127439246,-506.80036557,0.00013698,2]
[331186628,1720127439256,-500.0,0.00013698,2]
[331186629,1720127439266,-500.0,0.00013698,2]
[331186630,1720127439276,-500.0,0.00013698,2]
[331186631,1720127439286,-500.0,0.00013698,2]
[331186632,1720127439296,-500.0,0.00013698,2]
[331186633,1720127439308,-500.0,0.00013698,2]
[331186634,1720127439319,-500.0,0.00013698,2]
[331186635,1720127439328,-500.0,0.00013698,2]
[331186636,1720127439338,-501.81762391,0.00013698,2]
[331186637,1720127439348,-656.79,0.00013698,2]
[331186638,1720127439358,-500.0,0.00013698,2]
[331186639,1720127439367,-500.0,0.00013698,2]
[331186640,1720127439377,-500.0,0.00013698,2]
[331186641,1720127439386,-500.0,0.00013698,2]
[331186642,1720127439395,-500.0,0.00013698,2]
[331186643,1720127439405,-645.07580406,0.00013698,2]
[331186644,1720127439414,-500.0,0.00013698,2]
[331186645,1720127439424,-500.0,0.00013698,2]
[331186646,1720127439434,-500.0,0.00013698,2]
[331186647,1720127439444,-500.0,0.00013698,2]
[331186648,1720127439454,-500.0,0.00013698,2]
[331186649,1720127439469,-553.52,0.00013698,2]
[331186650,1720127439479,-500.0,0.00013698,2]
[331186651,1720127439489,-560.45,0.00013698,2]
[331186652,1720127439498,-500.0,0.00013698,2]
[331186653,1720127439510,-500.0,0.00013698,2]
[331186654,1720127439519,-500.0,0.00013698,2]
[331186655,1720127439535,-500.0,0.00013698,2]
[331186656,1720127439546,-503.51665328,0.00013698,2]
[331186657,1720127439556,-441.40422605,0.00013698,2]
[331186658,1720127439566,-500.0,0.00013698,2]
[331186659,1720127439576,-500.0,0.00013698,2]
[331186660,1720127439585,-500.0,0.00013698,2]
[331186661,1720127439595,-503.74275645,0.00013698,2]
[331186662,1720127439604,-500.0,0.00013698,2]
[331186663,1720127439614,-500.0,0.00013698,2]
[331186664,1720127439624,-500.0,0.00013698,2]
[331186665,1720127439635,-500.0,0.00013698,2]
[331186666,1720127439644,-500.0,0.00013698,2]
[331186667,1720127439654,-500.0,0.00013698,2]
[331186668,1720127439664,-500.0,0.00013698,2]
[331186669,1720127439674,-500.0,0.00013698,2]
[331186670,1720127439683,-1018.97,0.00013698,2]
[331186671,1720127439692,-500.0,0.00013698,2]
[331186672,1720127439702,-530.3,0.00013698,2]
[331186673,1720127439711,-500.0,0.00013698,2]
[331186674,1720127439721,-500.0,0.00013698,2]
[331186675,1720127439731,-500.0,0.00013698,2]
[331186676,1720127439741,-500.0,0.00013698,2]
[331186677,1720127439750,-500.0,0.00013698,2]
[331186678,1720127439760,-500.0,0.00013698,2]
[331186679,1720127439770,-1170.19,0.00013698,2]
[331186680,1720127439779,-500.0,0.00013698,2]
[331186681,1720127439789,-500.0,0.00013698,2]
[331186682,1720127439799,-500.0,0.00013698,2]
[331186683,1720127439809,-500.0,0.00013698,2]
[331186684,1720127439818,-500.0,0.00013698,2]
[331186685,1720127439827,-6234.22,0.00013698,2]
[331186686,1720127439838,-500.0,0.00013698,2]
[331186687,1720127439847,-1774.31,0.00013698,2]
[331186688,1720127439857,-500.0,0.00013698,2]
[331186689,1720127439867,-500.0,0.00013698,2]
[331186690,1720127439876,-500.0,0.00013698,2]
[331186691,1720127439886,-500.0,0.00013698,2]
[331186692,1720127439895,-500.0,0.00013698,2]
[331186693,1720127439905,-310.69723758,0.00013698,2]
[331186694,1720127439914,-500.0,0.00013698,2]
[331186695,1720127439924,-3037.41,0.00013698,2]
[331186696,1720127439933,-605.79,0.00013698,2]
[331186697,1720127439943,-500.0,0.00013698,2]
[331186698,1720127439952,-500.0,0.00013698,2]
[331186699,1720127439962,-500.0,0.00013698,2]
[331186700,1720127439972,-500.0,0.00013698,2]
[331186701,1720127439982,-851.35,0.00013698,2]
[331186702,1720127439991,-500.0,0.00013698,2]
[331186703,1720127440002,-500.0,0.00013698,2]
[331186704,1720127440012,-635.80447038,0.00013698,2]
[331186705,1720127440022,-1057.86,0.00013698,2]
[331186706,1720127440031,-500.0,0.00013698,2]
[331186707,1720127440040,-500.0,0.00013698,2]
[331186708,1720127440050,-500.0,0.00013698,2]
[331186709,1720127440060,-500.0,0.00013698,2]
[331186710,1720127440069,-512.41474097,0.00013698,2]
[331186711,1720127440079,-500.0,0.00013698,2]
[331186712,1720127440088,-500.0,0.00013698,2]
[331186713,1720127440097,-429.45036892,0.00013698,2]
[331186714,1720127440107,-500.0,0.00013698,2]
[331186715,1720127440117,-1700.42,0.00013698,2]
[331186716,1720127440127,-573.29,0.00013698,2]
[331186717,1720127440136,-500.0,0.00013698,2]
[331186718,1720127440146,-500.0,0.00013698,2]
[331186719,1720127440155,-500.0,0.00013698,2]
[331186720,1720127440165,-500.0,0.00013698,2]
[331186721,1720127440175,-500.0,0.00013698,2]
[331186722,1720127440184,-500.0,0.00013698,2]
[331186723,1720127440193,-620.65,0.00013698,2]
[331186724,1720127440202,-500.0,0.00013698,2]
[331186725,1720127440212,-500.0,0.00013698,2]
[331186726,1720127440222,-500.0,0.00013698,2]
[331186727,1720127440231,-500.0,0.00013698,2]
[331186728,1720127440240,-500.0,0.00013698,2]
[331186729,1720127440249,-500.0,0.00013698,2]
[331186730,1720127440260,-593.56390431,0.00013698,2]
[331186731,1720127440269,-500.0,0.00013698,2]
[331186733,1720127440279,-500.0,0.00013698,2]
[331186734,1720127440288,-500.0,0.00013698,2]
[331186735,1720127440297,-500.0,0.00013698,2]
[331186736,1720127440306,-504.51842998,0.00013698,2]
[331186737,1720127440315,-512.60721701,0.00013698,2]
[331186738,1720127440325,-500.0,0.00013698,2]
[331186739,1720127440334,-507.99464714,0.00013698,2]
[331186740,1720127440343,-312.81,0.00013698,2]
[331186741,1720127440352,-500.0,0.00013698,2]
[331186742,1720127440361,-500.0,0.00013698,2]
[331186743,1720127440371,-500.0,0.00013698,2]
[331186744,1720127440380,-500.0,0.00013698,2]
[331186745,1720127440389,-500.0,0.00013698,2]
[331186746,1720127440398,-500.0,0.00013698,2]
[331186747,1720127440407,-500.0,0.00013698,2]
[331186748,1720127440416,-500.0,0.00013698,2]
[331186749,1720127440425,-500.0,0.00013698,2]
[331186750,1720127440434,-500.0,0.00013698,2]
[331186751,1720127440443,-500.0,0.00013698,2]
[331186752,1720127440453,-510.7819092,0.00013698,2]
[331186753,1720127440463,-500.0,0.00013698,2]
[331186754,1720127440476,-500.0,0.00013698,2]
[331186755,1720127440486,-500.0,0.00013698,2]
[331186756,1720127440495,-500.0,0.00013698,2]
[331186757,1720127440505,-500.0,0.00013698,2]
[331186758,1720127440515,-500.0,0.00013698,2]
[331186759,1720127440524,-500.0,0.00013698,2]
[331186760,1720127440533,-500.0,0.00013698,2]
[331186761,1720127440543,-500.0,0.00013698,2]
[331186762,1720127440555,-500.0,0.00013698,2]
[331186763,1720127440564,-500.0,0.00013698,2]
[331186764,1720127440574,-475.0,0.00013698,2]
[331186765,1720127440583,-500.0,0.00013698,2]
[331186766,1720127440593,-500.0,0.00013698,2]
[331186767,1720127440602,-500.0,0.00013698,2]
[331186768,1720127440611,-500.0,0.00013698,2]
[331186769,1720127440620,-500.0,0.00013698,2]
[331186770,1720127440629,-500.0,0.00013698,2]
[331186772,1720127440638,-500.0,0.00013698,2]
[331186773,1720127440647,-606.45,0.00013698,2]
[331186775,1720127440657,-500.0,0.00013698,2]
[331186776,1720127440666,-500.0,0.00013698,2]
[331186777,1720127440676,-500.0,0.00013698,2]
[331186778,1720127440685,-500.0,0.00013698,2]